[Event "Titled Tuesday Blitz July 18 Early 2023"]
[White "Oro, Faustino"]
[Black "LeoLV10"]
[WhiteFideId "20000197"]
[WhiteElo "2790"]
[BlackElo "2507"]
[Result "1-0"]
[Round "3"]
[TimeControl "180+2"]
[Date "2023.07.18"]
[WhiteClock "0:00:17"]
[BlackClock "0:00:19"]
[Board "72"]

1. e4 {[%clk 0:03:00]}  c6 {[%clk 0:02:49]} 2. Nf3 {[%clk 0:02:57]}  d5 {[%clk 0:02:47]} 3. Nc3 {[%clk 0:02:58]}  Bg4 {[%clk 0:02:46]} 4. h3 {[%clk 0:02:57]}  Bxf3 {[%clk 0:02:47]} 5. Qxf3 {[%clk 0:02:57]}  e6 {[%clk 0:02:47]} 6. d3 {[%clk 0:02:57]}  Nf6 {[%clk 0:02:47]} 7. g3 {[%clk 0:02:56]}  Be7 {[%clk 0:02:41]} 8. Bg2 {[%clk 0:02:55]}  Nfd7 {[%clk 0:02:40]} 9. O-O {[%clk 0:02:55]}  O-O {[%clk 0:02:39]} 10. Qe2 {[%clk 0:02:54]}  Re8 {[%clk 0:02:31]} 11. Kh2 {[%clk 0:02:53]}  a6 {[%clk 0:02:17]} 12. f4 {[%clk 0:02:52]}  Bf8 {[%clk 0:02:16]} 13. f5 {[%clk 0:02:27]}  d4 {[%clk 0:02:12]} 14. Nd1 {[%clk 0:02:12]}  e5 {[%clk 0:02:11]} 15. Nf2 {[%clk 0:02:08]}  c5 {[%clk 0:02:09]} 16. h4 {[%clk 0:02:08]}  Nc6 {[%clk 0:02:09]} 17. Nh3 {[%clk 0:02:02]}  Be7 {[%clk 0:02:05]} 18. h5 {[%clk 0:01:52]}  h6 {[%clk 0:01:58]} 19. g4 {[%clk 0:01:52]}  f6 {[%clk 0:01:57]} 20. Ng1 {[%clk 0:01:43]}  b5 {[%clk 0:01:54]} 21. Nf3 {[%clk 0:01:41]}  Qc7 {[%clk 0:01:48]} 22. Rg1 {[%clk 0:01:32]}  Rac8 {[%clk 0:01:31]} 23. Bd2 {[%clk 0:01:28]}  Nd8 {[%clk 0:01:27]} 24. c4 {[%clk 0:01:17]}  bxc4 {[%clk 0:01:23]} 25. dxc4 {[%clk 0:01:17]}  Nf7 {[%clk 0:01:23]} 26. Qd3 {[%clk 0:01:05]}  Rb8 {[%clk 0:01:17]} 27. Rab1 {[%clk 0:01:04]}  a5 {[%clk 0:01:16]} 28. b3 {[%clk 0:00:58]}  Ra8 {[%clk 0:01:12]} 29. a3 {[%clk 0:00:56]}  Reb8 {[%clk 0:01:11]} 30. Bf1 {[%clk 0:00:52]}  Nd6 {[%clk 0:01:05]} 31. Be2 {[%clk 0:00:48]}  Qc6 {[%clk 0:01:04]} 32. Nh4 {[%clk 0:00:39]}  Qxe4 {[%clk 0:00:50]} 33. Qxe4 {[%clk 0:00:32]}  Nxe4 {[%clk 0:00:51]} 34. Be1 {[%clk 0:00:32]}  Nd6 {[%clk 0:00:51]} 35. Bd2 {[%clk 0:00:25]}  e4 {[%clk 0:00:49]} 36. Ng2 {[%clk 0:00:25]}  Ne5 {[%clk 0:00:49]} 37. Nf4 {[%clk 0:00:22]}  e3 {[%clk 0:00:44]} 38. Be1 {[%clk 0:00:20]}  Ne4 {[%clk 0:00:44]} 39. Nd5 {[%clk 0:00:19]}  Bd6 {[%clk 0:00:43]} 40. Kg2 {[%clk 0:00:19]}  d3 {[%clk 0:00:37]} 41. Bf3 {[%clk 0:00:19]}  Nxf3 {[%clk 0:00:36]} 42. Kxf3 {[%clk 0:00:20]}  d2 {[%clk 0:00:37]} 43. Kxe4 {[%clk 0:00:19]}  dxe1=Q {[%clk 0:00:35]} 44. Rgxe1 {[%clk 0:00:20]}  Re8+ {[%clk 0:00:35]} 45. Kd3 {[%clk 0:00:20]}  Be5 {[%clk 0:00:33]} 46. Rxe3 {[%clk 0:00:20]}  Red8 {[%clk 0:00:33]} 47. Kc2 {[%clk 0:00:19]}  Kf7 {[%clk 0:00:33]} 48. a4 {[%clk 0:00:19]}  Rab8 {[%clk 0:00:32]} 49. Rbe1 {[%clk 0:00:18]}  Re8 {[%clk 0:00:30]} 50. Rd3 {[%clk 0:00:18]}  Rb7 {[%clk 0:00:30]} 51. Nc3 {[%clk 0:00:17]}  Bd4 {[%clk 0:00:25]} 52. Rxe8 {[%clk 0:00:16]}  Kxe8 {[%clk 0:00:26]} 53. Nb5 {[%clk 0:00:16]}  Rd7 {[%clk 0:00:19]} 54. Nxd4 {[%clk 0:00:16]}  cxd4 {[%clk 0:00:20]} 55. Rd1 {[%clk 0:00:15]}  Kd8 {[%clk 0:00:20]} 56. Kd3 {[%clk 0:00:15]}  Kc7 {[%clk 0:00:21]} 57. Re1 {[%clk 0:00:15]}  Kc6 {[%clk 0:00:21]} 58. Re6+ {[%clk 0:00:13]}  Kc5 {[%clk 0:00:21]} 59. Ra6 {[%clk 0:00:14]}  Kb4 {[%clk 0:00:21]} 60. Rb6+ {[%clk 0:00:14]}  Ka3 {[%clk 0:00:21]} 61. Rb5 {[%clk 0:00:15]}  Re7 {[%clk 0:00:19]} 62. Kxd4 {[%clk 0:00:14]}  Rd7+ {[%clk 0:00:18]} 63. Kc5 {[%clk 0:00:14]}  Rd3 {[%clk 0:00:17]} 64. Kb6 {[%clk 0:00:15]}  Rg3 {[%clk 0:00:18]} 65. c5 {[%clk 0:00:15]}  Rxg4 {[%clk 0:00:18]} 66. c6 {[%clk 0:00:15]}  Rg1 {[%clk 0:00:19]} 67. c7 {[%clk 0:00:16]}  Rc1 {[%clk 0:00:20]} 68. Rc5 {[%clk 0:00:16]}  Rxc5 {[%clk 0:00:19]} 69. Kxc5 {[%clk 0:00:17]} 1-0


[Site "https://www.chess.com"]

[Event "Titled Tuesday Blitz July 18 Early 2023"]
[White "Michalczak, Thomas"]
[Black "Schmakel, Sam"]
[WhiteFideId "4622634"]
[BlackFideId "2039311"]
[WhiteElo "2507"]
[BlackElo "2768"]
[Result "1/2-1/2"]
[Round "3"]
[TimeControl "180+2"]
[Date "2023.07.18"]
[WhiteClock "0:00:21"]
[BlackClock "0:00:09"]
[Board "73"]

1. e4 {[%clk 0:03:00]}  Nc6 {[%clk 0:02:59]} 2. Nf3 {[%clk 0:03:00]}  d6 {[%clk 0:02:59]} 3. d4 {[%clk 0:03:00]}  Nf6 {[%clk 0:02:59]} 4. Nc3 {[%clk 0:02:59]}  g6 {[%clk 0:02:59]} 5. Be2 {[%clk 0:02:56]}  Bg7 {[%clk 0:02:59]} 6. O-O {[%clk 0:02:54]}  O-O {[%clk 0:02:57]} 7. h3 {[%clk 0:02:52]}  a6 {[%clk 0:02:57]} 8. a4 {[%clk 0:02:51]}  e5 {[%clk 0:02:56]} 9. dxe5 {[%clk 0:02:46]}  dxe5 {[%clk 0:02:54]} 10. Be3 {[%clk 0:02:39]}  h6 {[%clk 0:02:47]} 11. Bc5 {[%clk 0:02:36]}  Re8 {[%clk 0:02:44]} 12. Bc4 {[%clk 0:02:34]}  b6 {[%clk 0:01:58]} 13. Ba3 {[%clk 0:02:27]}  Bb7 {[%clk 0:01:58]} 14. Qxd8 {[%clk 0:02:06]}  Raxd8 {[%clk 0:01:57]} 15. Nd5 {[%clk 0:02:06]}  Na5 {[%clk 0:01:36]} 16. Nxf6+ {[%clk 0:01:34]}  Bxf6 {[%clk 0:01:37]} 17. Bd3 {[%clk 0:01:34]}  c5 {[%clk 0:01:31]} 18. b3 {[%clk 0:01:30]}  Nc6 {[%clk 0:01:23]} 19. Rfe1 {[%clk 0:01:28]}  h5 {[%clk 0:01:16]} 20. Rad1 {[%clk 0:01:27]}  Nd4 {[%clk 0:01:10]} 21. Nxd4 {[%clk 0:01:26]}  exd4 {[%clk 0:01:10]} 22. f4 {[%clk 0:01:18]}  Bh4 {[%clk 0:01:08]} 23. Re2 {[%clk 0:01:16]}  Re7 {[%clk 0:01:00]} 24. Kh2 {[%clk 0:01:09]}  Rde8 {[%clk 0:00:57]} 25. g3 {[%clk 0:01:08]}  Bf6 {[%clk 0:00:57]} 26. e5 {[%clk 0:01:09]}  Bg7 {[%clk 0:00:58]} 27. Rde1 {[%clk 0:01:08]}  g5 {[%clk 0:00:53]} 28. h4 {[%clk 0:01:04]}  g4 {[%clk 0:00:46]} 29. Kg1 {[%clk 0:00:50]}  a5 {[%clk 0:00:34]} 30. Kf2 {[%clk 0:00:50]}  Bf3 {[%clk 0:00:32]} 31. Rd2 {[%clk 0:00:48]}  Kf8 {[%clk 0:00:31]} 32. Bb5 {[%clk 0:00:46]}  Rd8 {[%clk 0:00:32]} 33. Be2 {[%clk 0:00:46]}  Bxe2 {[%clk 0:00:26]} 34. Rdxe2 {[%clk 0:00:47]}  d3 {[%clk 0:00:21]} 35. Rd2 {[%clk 0:00:38]}  Red7 {[%clk 0:00:20]} 36. c3 {[%clk 0:00:32]}  Ke7 {[%clk 0:00:12]} 37. Red1 {[%clk 0:00:32]}  f6 {[%clk 0:00:09]} 38. e6 {[%clk 0:00:24]}  Kxe6 {[%clk 0:00:07]} 39. Ke3 {[%clk 0:00:25]}  f5 {[%clk 0:00:07]} 40. Rxd3 {[%clk 0:00:25]}  Rxd3+ {[%clk 0:00:07]} 41. Rxd3 {[%clk 0:00:26]}  Rxd3+ {[%clk 0:00:07]} 42. Kxd3 {[%clk 0:00:27]}  Kd5 {[%clk 0:00:08]} 43. Bb2 {[%clk 0:00:21]}  Kc6 {[%clk 0:00:08]} 44. Bc1 {[%clk 0:00:20]}  Bf6 {[%clk 0:00:05]} 45. Be3 {[%clk 0:00:20]}  Bg7 {[%clk 0:00:06]} 46. Kc4 {[%clk 0:00:19]}  Bf6 {[%clk 0:00:06]} 47. Bf2 {[%clk 0:00:19]}  Bg7 {[%clk 0:00:07]} 48. Be3 {[%clk 0:00:20]}  Bf6 {[%clk 0:00:07]} 49. Bf2 {[%clk 0:00:20]}  Bg7 {[%clk 0:00:08]} 50. b4 {[%clk 0:00:19]}  cxb4 {[%clk 0:00:08]} 51. cxb4 {[%clk 0:00:19]}  axb4 {[%clk 0:00:09]} 52. Kxb4 {[%clk 0:00:20]}  Bb2 {[%clk 0:00:09]} 53. Kc4 {[%clk 0:00:19]}  Bf6 {[%clk 0:00:08]} 54. Kb4 {[%clk 0:00:20]}  Be7+ {[%clk 0:00:08]} 55. Kc4 {[%clk 0:00:20]}  Bf6 {[%clk 0:00:09]} 56. Kb4 {[%clk 0:00:20]}  Be7+ {[%clk 0:00:09]} 57. Kc4 {[%clk 0:00:21]}  Bf6 {[%clk 0:00:09]} 1/2-1/2


[Site "https://www.chess.com"]

[Event "Titled Tuesday Blitz July 18 Early 2023"]
[White "Volovich, Vasily"]
[Black "MateoReyes"]
[WhiteFideId "34169676"]
[WhiteElo "2760"]
[BlackElo "2500"]
[Result "1/2-1/2"]
[Round "3"]
[TimeControl "180+2"]
[Date "2023.07.18"]
[WhiteClock "0:00:13"]
[BlackClock "0:00:09"]
[Board "75"]

1. e4 {[%clk 0:02:57]}  c5 {[%clk 0:02:58]} 2. Nf3 {[%clk 0:02:54]}  d6 {[%clk 0:02:58]} 3. c3 {[%clk 0:02:54]}  Nf6 {[%clk 0:02:57]} 4. h3 {[%clk 0:02:54]}  e6 {[%clk 0:02:55]} 5. Bd3 {[%clk 0:02:54]}  Be7 {[%clk 0:02:53]} 6. O-O {[%clk 0:02:18]}  Nc6 {[%clk 0:02:52]} 7. Bc2 {[%clk 0:02:10]}  e5 {[%clk 0:02:50]} 8. d4 {[%clk 0:02:10]}  O-O {[%clk 0:02:49]} 9. dxe5 {[%clk 0:02:09]}  dxe5 {[%clk 0:02:48]} 10. Bg5 {[%clk 0:02:08]}  h6 {[%clk 0:02:46]} 11. Bxf6 {[%clk 0:02:08]}  Bxf6 {[%clk 0:02:46]} 12. Nbd2 {[%clk 0:02:09]}  Be6 {[%clk 0:02:45]} 13. Bb3 {[%clk 0:02:08]}  Qe7 {[%clk 0:02:43]} 14. Bxe6 {[%clk 0:02:08]}  Qxe6 {[%clk 0:02:42]} 15. Qb3 {[%clk 0:02:08]}  Rfe8 {[%clk 0:02:26]} 16. Nc4 {[%clk 0:01:59]}  g6 {[%clk 0:02:17]} 17. Rfd1 {[%clk 0:01:55]}  Bg7 {[%clk 0:02:15]} 18. Ne3 {[%clk 0:01:49]}  b6 {[%clk 0:01:44]} 19. Nd5 {[%clk 0:01:29]}  Rac8 {[%clk 0:01:41]} 20. Rd2 {[%clk 0:01:14]}  Kh7 {[%clk 0:01:39]} 21. Rad1 {[%clk 0:01:13]}  f5 {[%clk 0:01:36]} 22. Qa4 {[%clk 0:01:08]}  Rf8 {[%clk 0:01:28]} 23. Ne3 {[%clk 0:00:32]}  Rcd8 {[%clk 0:01:17]} 24. Rxd8 {[%clk 0:00:26]}  Rxd8 {[%clk 0:01:16]} 25. Rxd8 {[%clk 0:00:27]}  Nxd8 {[%clk 0:01:15]} 26. Qxa7 {[%clk 0:00:27]}  fxe4 {[%clk 0:01:12]} 27. Nd2 {[%clk 0:00:27]}  Qc6 {[%clk 0:01:03]} 28. Qe7 {[%clk 0:00:26]}  Ne6 {[%clk 0:01:01]} 29. Nxe4 {[%clk 0:00:23]}  Qxe4 {[%clk 0:00:58]} 30. Qxe6 {[%clk 0:00:24]}  Qb1+ {[%clk 0:00:57]} 31. Kh2 {[%clk 0:00:24]}  Qxb2 {[%clk 0:00:57]} 32. Qf7 {[%clk 0:00:14]}  h5 {[%clk 0:00:50]} 33. Nd5 {[%clk 0:00:13]}  Qd2 {[%clk 0:00:35]} 34. Ne7 {[%clk 0:00:12]}  Qf4+ {[%clk 0:00:34]} 35. Qxf4 {[%clk 0:00:11]}  exf4 {[%clk 0:00:34]} 36. Nd5 {[%clk 0:00:12]}  b5 {[%clk 0:00:33]} 37. g3 {[%clk 0:00:07]}  fxg3+ {[%clk 0:00:32]} 38. Kxg3 {[%clk 0:00:07]}  Be5+ {[%clk 0:00:32]} 39. f4 {[%clk 0:00:07]}  Bd6 {[%clk 0:00:31]} 40. Kf3 {[%clk 0:00:08]}  Kg7 {[%clk 0:00:30]} 41. Ke4 {[%clk 0:00:08]}  Kf7 {[%clk 0:00:30]} 42. f5 {[%clk 0:00:06]}  gxf5+ {[%clk 0:00:29]} 43. Kxf5 {[%clk 0:00:07]}  b4 {[%clk 0:00:29]} 44. cxb4 {[%clk 0:00:07]}  cxb4 {[%clk 0:00:28]} 45. Nf4 {[%clk 0:00:06]}  h4 {[%clk 0:00:22]} 46. Nd5 {[%clk 0:00:05]}  Bc5 {[%clk 0:00:20]} 47. Nf4 {[%clk 0:00:05]}  Be7 {[%clk 0:00:19]} 48. Nd3 {[%clk 0:00:05]}  Bf8 {[%clk 0:00:17]} 49. Ne5+ {[%clk 0:00:05]}  Ke8 {[%clk 0:00:14]} 50. Ng6 {[%clk 0:00:06]}  Bc5 {[%clk 0:00:11]} 51. Nxh4 {[%clk 0:00:06]}  Kd7 {[%clk 0:00:11]} 52. Ke5 {[%clk 0:00:06]}  Bd6+ {[%clk 0:00:10]} 53. Kd5 {[%clk 0:00:06]}  Bg3 {[%clk 0:00:10]} 54. Nf5 {[%clk 0:00:06]}  Bf2 {[%clk 0:00:09]} 55. h4 {[%clk 0:00:05]}  Ke8 {[%clk 0:00:09]} 56. h5 {[%clk 0:00:05]}  Kf7 {[%clk 0:00:08]} 57. Nd6+ {[%clk 0:00:05]}  Kg7 {[%clk 0:00:07]} 58. Ne4 {[%clk 0:00:03]}  Be1 {[%clk 0:00:06]} 59. Ke5 {[%clk 0:00:02]}  Kh6 {[%clk 0:00:07]} 60. Nf6 {[%clk 0:00:03]}  Bc3+ {[%clk 0:00:04]} 61. Kf5 {[%clk 0:00:03]}  Bxf6 {[%clk 0:00:03]} 62. Kxf6 {[%clk 0:00:04]}  Kxh5 {[%clk 0:00:04]} 63. Kf5 {[%clk 0:00:03]}  Kh6 {[%clk 0:00:04]} 64. Kf6 {[%clk 0:00:04]}  Kh7 {[%clk 0:00:04]} 65. Kf7 {[%clk 0:00:04]}  Kh8 {[%clk 0:00:04]} 66. Ke6 {[%clk 0:00:05]}  Kg7 {[%clk 0:00:04]} 67. Kd5 {[%clk 0:00:05]}  Kf8 {[%clk 0:00:05]} 68. Kc4 {[%clk 0:00:06]}  Ke8 {[%clk 0:00:05]} 69. Kxb4 {[%clk 0:00:07]}  Kd8 {[%clk 0:00:06]} 70. Kb5 {[%clk 0:00:07]}  Kc8 {[%clk 0:00:07]} 71. Kb6 {[%clk 0:00:08]}  Kb8 {[%clk 0:00:08]} 72. Ka6 {[%clk 0:00:09]}  Ka8 {[%clk 0:00:08]} 73. a4 {[%clk 0:00:09]}  Kb8 {[%clk 0:00:08]} 74. a5 {[%clk 0:00:10]}  Ka8 {[%clk 0:00:08]} 75. Kb6 {[%clk 0:00:11]}  Kb8 {[%clk 0:00:09]} 76. a6 {[%clk 0:00:12]}  Ka8 {[%clk 0:00:09]} 77. a7 {[%clk 0:00:13]} 1/2-1/2


[Site "https://www.chess.com"]

[Event "Titled Tuesday Blitz July 18 Early 2023"]
[White "Brodowski, Piotr"]
[Black "Mmukka"]
[WhiteFideId "1124480"]
[WhiteElo "2747"]
[BlackElo "2496"]
[Result "1-0"]
[Round "3"]
[TimeControl "180+2"]
[Date "2023.07.18"]
[WhiteClock "0:00:36"]
[BlackClock "0:00:02"]
[Board "77"]

1. e4 {[%clk 0:03:00]}  c5 {[%clk 0:02:59]} 2. Nf3 {[%clk 0:02:59]}  e6 {[%clk 0:02:59]} 3. g3 {[%clk 0:02:54]}  d5 {[%clk 0:02:58]} 4. exd5 {[%clk 0:02:53]}  exd5 {[%clk 0:02:58]} 5. d4 {[%clk 0:02:54]}  cxd4 {[%clk 0:02:58]} 6. Bg2 {[%clk 0:02:54]}  Nf6 {[%clk 0:02:43]} 7. O-O {[%clk 0:02:54]}  Bg4 {[%clk 0:02:41]} 8. Nbd2 {[%clk 0:02:51]}  Be7 {[%clk 0:02:38]} 9. Nb3 {[%clk 0:02:50]}  O-O {[%clk 0:02:37]} 10. Nbxd4 {[%clk 0:02:50]}  Nc6 {[%clk 0:02:37]} 11. h3 {[%clk 0:02:50]}  Bxf3 {[%clk 0:02:25]} 12. Nxf3 {[%clk 0:02:49]}  Qd7 {[%clk 0:02:23]} 13. c3 {[%clk 0:02:48]}  Rad8 {[%clk 0:02:20]} 14. Be3 {[%clk 0:02:47]}  Rfe8 {[%clk 0:02:18]} 15. Qb3 {[%clk 0:02:44]}  Bf8 {[%clk 0:02:01]} 16. Rad1 {[%clk 0:02:43]}  Qc7 {[%clk 0:01:56]} 17. Nd4 {[%clk 0:02:39]}  Rxe3 {[%clk 0:01:22]} 18. fxe3 {[%clk 0:02:38]}  Qxg3 {[%clk 0:01:22]} 19. Nf5 {[%clk 0:02:38]}  Qe5 {[%clk 0:01:20]} 20. Rde1 {[%clk 0:02:37]}  g6 {[%clk 0:01:17]} 21. Nd4 {[%clk 0:02:37]}  Bd6 {[%clk 0:01:17]} 22. Nf3 {[%clk 0:02:36]}  Qg3 {[%clk 0:01:16]} 23. Qc2 {[%clk 0:02:31]}  Ne4 {[%clk 0:01:14]} 24. Rd1 {[%clk 0:01:36]}  Ne5 {[%clk 0:00:47]} 25. Rxd5 {[%clk 0:01:36]}  Nxf3+ {[%clk 0:00:39]} 26. Rxf3 {[%clk 0:01:35]}  Qh2+ {[%clk 0:00:23]} 27. Kf1 {[%clk 0:01:35]}  Ng3+ {[%clk 0:00:23]} 28. Rxg3 {[%clk 0:01:35]}  Qxg3 {[%clk 0:00:24]} 29. Qd3 {[%clk 0:01:33]}  h5 {[%clk 0:00:17]} 30. c4 {[%clk 0:01:32]}  b6 {[%clk 0:00:17]} 31. b4 {[%clk 0:01:31]}  Re8 {[%clk 0:00:14]} 32. Rxd6 {[%clk 0:01:30]}  Rxe3 {[%clk 0:00:14]} 33. Rd8+ {[%clk 0:01:30]}  Kh7 {[%clk 0:00:15]} 34. Qd2 {[%clk 0:01:28]}  Qf4+ {[%clk 0:00:14]} 35. Qf2 {[%clk 0:01:26]}  Qxc4+ {[%clk 0:00:14]} 36. Kg1 {[%clk 0:01:26]}  Re2 {[%clk 0:00:14]} 37. Qf6 {[%clk 0:01:19]}  Re1+ {[%clk 0:00:14]} 38. Kh2 {[%clk 0:01:17]}  Qc7+ {[%clk 0:00:14]} 39. Qd6 {[%clk 0:01:12]}  Qc1 {[%clk 0:00:14]} 40. Qd4 {[%clk 0:01:08]}  Qc7+ {[%clk 0:00:13]} 41. Qd6 {[%clk 0:01:06]}  Qc1 {[%clk 0:00:13]} 42. Rd7 {[%clk 0:01:03]}  Qc4 {[%clk 0:00:11]} 43. Qf6 {[%clk 0:00:56]}  Rc1 {[%clk 0:00:05]} 44. Rxf7+ {[%clk 0:00:55]}  Kh6 {[%clk 0:00:05]} 45. Qg7+ {[%clk 0:00:38]}  Kg5 {[%clk 0:00:05]} 46. Qe5+ {[%clk 0:00:38]}  Kh6 {[%clk 0:00:05]} 47. Rf8 {[%clk 0:00:36]}  Rd1 {[%clk 0:00:02]} 48. Rh8# {[%clk 0:00:36]} 1-0


[Site "https://www.chess.com"]

[Event "Titled Tuesday Blitz July 18 Early 2023"]
[White "Morefield, Jason"]
[Black "Erzhanov, Arman"]
[WhiteFideId "30920825"]
[BlackFideId "4138821"]
[WhiteElo "2746"]
[BlackElo "2494"]
[Result "1-0"]
[Round "3"]
[TimeControl "180+2"]
[Date "2023.07.18"]
[WhiteClock "0:00:11"]
[BlackClock "0:00:03"]
[Board "78"]

1. e4 {[%clk 0:02:37]}  d6 {[%clk 0:02:59]} 2. d4 {[%clk 0:02:37]}  Nf6 {[%clk 0:03:00]} 3. Nc3 {[%clk 0:02:37]}  c6 {[%clk 0:03:00]} 4. f4 {[%clk 0:02:37]}  d5 {[%clk 0:02:57]} 5. e5 {[%clk 0:02:37]}  Ng8 {[%clk 0:02:58]} 6. Bd3 {[%clk 0:02:37]}  h5 {[%clk 0:02:58]} 7. Nf3 {[%clk 0:02:26]}  Nh6 {[%clk 0:02:57]} 8. O-O {[%clk 0:02:24]}  g6 {[%clk 0:02:57]} 9. Ng5 {[%clk 0:02:22]}  Bg4 {[%clk 0:02:51]} 10. Qe1 {[%clk 0:01:59]}  e6 {[%clk 0:02:51]} 11. a4 {[%clk 0:01:47]}  Bf5 {[%clk 0:02:51]} 12. Bxf5 {[%clk 0:01:45]}  Nxf5 {[%clk 0:02:50]} 13. Ne2 {[%clk 0:01:46]}  Be7 {[%clk 0:02:50]} 14. a5 {[%clk 0:01:44]}  Nd7 {[%clk 0:02:48]} 15. b3 {[%clk 0:01:43]}  Kf8 {[%clk 0:02:46]} 16. Nf3 {[%clk 0:01:32]}  c5 {[%clk 0:02:45]} 17. dxc5 {[%clk 0:01:29]}  Nxc5 {[%clk 0:02:45]} 18. Ned4 {[%clk 0:01:26]}  Nxd4 {[%clk 0:02:42]} 19. Nxd4 {[%clk 0:01:27]}  Rc8 {[%clk 0:02:42]} 20. Kh1 {[%clk 0:01:26]}  Ne4 {[%clk 0:02:41]} 21. c4 {[%clk 0:01:23]}  h4 {[%clk 0:02:41]} 22. Bb2 {[%clk 0:01:13]}  Bc5 {[%clk 0:02:40]} 23. Rf3 {[%clk 0:00:53]}  Ng3+ {[%clk 0:01:29]} 24. hxg3 {[%clk 0:00:52]}  hxg3+ {[%clk 0:01:30]} 25. Kg1 {[%clk 0:00:53]}  Rh1+ {[%clk 0:01:30]} 26. Kxh1 {[%clk 0:00:53]}  Qh4+ {[%clk 0:01:31]} 27. Kg1 {[%clk 0:00:54]}  Qh2+ {[%clk 0:01:32]} 28. Kf1 {[%clk 0:00:55]}  Qh1+ {[%clk 0:01:32]} 29. Ke2 {[%clk 0:00:55]}  Qxg2+ {[%clk 0:01:33]} 30. Kd3 {[%clk 0:00:49]}  Qxb2 {[%clk 0:01:33]} 31. Qc3 {[%clk 0:00:41]}  dxc4+ {[%clk 0:01:27]} 32. bxc4 {[%clk 0:00:42]}  Qg2 {[%clk 0:00:47]} 33. Ke4 {[%clk 0:00:33]}  Rd8 {[%clk 0:00:33]} 34. Rd1 {[%clk 0:00:27]}  Kg7 {[%clk 0:00:13]} 35. Nxe6+ {[%clk 0:00:20]}  fxe6 {[%clk 0:00:13]} 36. Rxd8 {[%clk 0:00:20]}  Qe2+ {[%clk 0:00:13]} 37. Re3 {[%clk 0:00:21]}  Qg2+ {[%clk 0:00:08]} 38. Kd3 {[%clk 0:00:19]}  Bxe3 {[%clk 0:00:08]} 39. Rd7+ {[%clk 0:00:17]}  Kh6 {[%clk 0:00:08]} 40. Kxe3 {[%clk 0:00:14]}  Qf2+ {[%clk 0:00:08]} 41. Ke4 {[%clk 0:00:14]}  Qe2+ {[%clk 0:00:06]} 42. Qe3 {[%clk 0:00:12]}  Qxc4+ {[%clk 0:00:07]} 43. Rd4 {[%clk 0:00:13]}  Qc2+ {[%clk 0:00:06]} 44. Kf3 {[%clk 0:00:12]}  g2 {[%clk 0:00:06]} 45. Qg1 {[%clk 0:00:11]}  Qc3+ {[%clk 0:00:06]} 46. Kxg2 {[%clk 0:00:11]}  Qxd4 {[%clk 0:00:03]} 47. Qxd4 {[%clk 0:00:11]} 1-0


[Site "https://www.chess.com"]

[Event "Titled Tuesday Blitz July 18 Early 2023"]
[White "Preotu, Razvan"]
[Black "Rodriguez Fontecha, Marcos"]
[WhiteFideId "2613280"]
[BlackFideId "2256576"]
[WhiteElo "2728"]
[BlackElo "2475"]
[Result "1-0"]
[Round "3"]
[TimeControl "180+2"]
[Date "2023.07.18"]
[WhiteClock "0:00:15"]
[BlackClock "0:00:00"]
[Board "82"]

1. e4 {[%clk 0:02:58]}  e6 {[%clk 0:02:57]} 2. d4 {[%clk 0:02:58]}  d5 {[%clk 0:02:57]} 3. Nc3 {[%clk 0:02:58]}  Bb4 {[%clk 0:02:57]} 4. e5 {[%clk 0:02:58]}  Ne7 {[%clk 0:02:57]} 5. a3 {[%clk 0:02:58]}  Bxc3+ {[%clk 0:02:57]} 6. bxc3 {[%clk 0:02:59]}  b6 {[%clk 0:02:57]} 7. h4 {[%clk 0:03:00]}  Ba6 {[%clk 0:02:52]} 8. Bxa6 {[%clk 0:03:00]}  Nxa6 {[%clk 0:02:53]} 9. h5 {[%clk 0:03:01]}  Nb8 {[%clk 0:02:44]} 10. h6 {[%clk 0:03:01]}  g6 {[%clk 0:02:40]} 11. Bg5 {[%clk 0:03:01]}  Nd7 {[%clk 0:02:16]} 12. Nf3 {[%clk 0:03:01]}  O-O {[%clk 0:02:02]} 13. Qe2 {[%clk 0:03:01]}  Qe8 {[%clk 0:01:56]} 14. Nh2 {[%clk 0:02:55]}  c5 {[%clk 0:01:43]} 15. Ng4 {[%clk 0:02:53]}  cxd4 {[%clk 0:01:43]} 16. cxd4 {[%clk 0:02:54]}  Rc8 {[%clk 0:01:43]} 17. Bf6 {[%clk 0:02:34]}  Nf5 {[%clk 0:01:37]} 18. Qd2 {[%clk 0:02:31]}  Rc4 {[%clk 0:01:31]} 19. c3 {[%clk 0:02:12]}  Qc8 {[%clk 0:01:29]} 20. Rh3 {[%clk 0:01:59]}  b5 {[%clk 0:01:16]} 21. Bg7 {[%clk 0:01:53]}  Re8 {[%clk 0:01:12]} 22. Nf6+ {[%clk 0:01:50]}  Nxf6 {[%clk 0:01:11]} 23. Bxf6 {[%clk 0:01:51]}  a5 {[%clk 0:00:51]} 24. g4 {[%clk 0:01:51]}  Ne7 {[%clk 0:00:52]} 25. Rb1 {[%clk 0:01:36]}  b4 {[%clk 0:00:25]} 26. axb4 {[%clk 0:01:37]}  axb4 {[%clk 0:00:23]} 27. Rxb4 {[%clk 0:01:36]}  Rxb4 {[%clk 0:00:18]} 28. cxb4 {[%clk 0:01:37]}  Nc6 {[%clk 0:00:19]} 29. b5 {[%clk 0:01:27]}  Nb8 {[%clk 0:00:08]} 30. Rc3 {[%clk 0:01:25]}  Qb7 {[%clk 0:00:09]} 31. Qb2 {[%clk 0:00:55]}  Nd7 {[%clk 0:00:08]} 32. Qb4 {[%clk 0:00:41]}  Nb6 {[%clk 0:00:03]} 33. Rc6 {[%clk 0:00:37]}  Nc4 {[%clk 0:00:03]} 34. Qc5 {[%clk 0:00:38]}  Qa8 {[%clk 0:00:02]} 35. Ra6 {[%clk 0:00:34]}  Qb7 {[%clk 0:00:01]} 36. Ra7 {[%clk 0:00:32]}  Qb8 {[%clk 0:00:01]} 37. Ke2 {[%clk 0:00:23]}  Nb2 {[%clk 0:00:01]} 38. Kf3 {[%clk 0:00:20]}  Nc4 {[%clk 0:00:02]} 39. Qc7 {[%clk 0:00:19]}  Qxc7 {[%clk 0:00:01]} 40. Rxc7 {[%clk 0:00:20]}  Rb8 {[%clk 0:00:01]} 41. Kf4 {[%clk 0:00:18]}  Kf8 {[%clk 0:00:02]} 42. Kg5 {[%clk 0:00:15]}  Nd2 {[%clk 0:00:02]} 43. b6 {[%clk 0:00:13]}  Ne4+ {[%clk 0:00:02]} 44. Kf4 {[%clk 0:00:13]}  Nxf6 {[%clk 0:00:01]} 45. exf6 {[%clk 0:00:14]}  Ke8 {[%clk 0:00:02]} 46. b7 {[%clk 0:00:15]}  Kd8 {[%clk 0:00:00]} 47. Rxf7 {[%clk 0:00:15]} 1-0


[Site "https://www.chess.com"]